fUST/lending_fUST_20250611
["ID","MTS","AMOUNT","RATE_DAILY","PERIOD"]
[365355162,1749617440591,-460.0,0.00021917,4]
[365355164,1749617440600,-420.0,0.00021917,4]
[365355166,1749617440610,-344.72942855,0.00021917,4]
[365355168,1749617440619,-460.0,0.00021917,4]
[365355170,1749617440628,-635.72,0.00021917,4]
[365355172,1749617440638,-460.0,0.00021917,4]
[365355174,1749617440648,-2347.76,0.00021917,4]
[365355176,1749617440657,-1154.84,0.00021917,4]
[365355178,1749617440667,-460.0,0.00021917,4]
[365355180,1749617440676,-2492.72,0.00021917,4]
[365355182,1749617440686,-460.0,0.00021917,4]
[365355184,1749617440695,-961.63,0.00021917,4]
[365355186,1749617440704,-460.0,0.00021917,2]
[365355188,1749617440713,-753.47,0.00021917,4]
[365355190,1749617440723,-1601.67,0.00021917,4]
[365355192,1749617440732,-171.08869966,0.00021917,4]
[365355194,1749617440743,-420.0,0.00021917,4]
[365355196,1749617440752,-482.14,0.00021917,4]
[365355198,1749617440761,-460.0,0.00021917,4]
[365355200,1749617440770,-460.0,0.00021917,4]
[365355202,1749617440782,-460.0,0.00021917,4]
[365355204,1749617440791,-460.0,0.00021917,4]
[365355206,1749617440801,-543.93,0.00021917,4]
[365355208,1749617440813,-430.0,0.00021917,4]
[365355210,1749617440822,-460.0,0.00021917,4]
[365355212,1749617440831,-460.0,0.00021917,4]
[365355214,1749617440840,-1190.92,0.00021917,4]
[365355216,1749617440850,-587.04436035,0.00021917,4]
[365355218,1749617440859,-1099.92,0.00021917,4]
[365355220,1749617440868,-460.0,0.00021917,4]
[365355222,1749617440879,-192.62753122,0.00021918,2]
[365355224,1749617440888,-33727.15,0.00022,2]
[365355226,1749617440897,-2817.65454649,0.00022003,6]
[365355228,1749617440907,-365.0707398,0.00022082,2]
[365355230,1749617440916,-729.9976899,0.00022082,2]
[365355232,1749617440927,-165.86622271,0.00022087,2]
[365355234,1749617440936,-500.0,0.00022124,2]
[365355236,1749617440945,-2817.65454649,0.00022141,6]
[365355238,1749617440954,-500.0,0.0002216,2]
[365355240,1749617440964,-460.0,0.00022191,4]
[365355243,1749617440975,-430.0,0.00022191,4]
[365355245,1749617440984,-460.0,0.00022191,4]
[365355247,1749617440992,-460.0,0.00022191,4]
[365355249,1749617441002,-460.0,0.00022191,4]
[365355251,1749617441011,-460.0,0.00022191,4]
[365355252,1749617441020,-460.0,0.00022191,4]
[365355254,1749617441030,-460.0,0.00022191,4]
[365355256,1749617441039,-460.0,0.00022191,4]
[365355258,1749617441048,-460.0,0.00022191,4]
[365355260,1749617441057,-460.0,0.00022191,4]
[365355262,1749617441066,-387.90834845,0.00022191,4]
[365355264,1749617441075,-460.0,0.00022191,4]
[365355266,1749617441084,-265.00562769,0.00022191,4]
[365355267,1749617441093,-380.41920565,0.00022191,4]
[365355269,1749617441102,-2810.08,0.00022191,4]
[365355271,1749617441112,-353.20253897,0.00022191,4]
[365355273,1749617441121,-829.06,0.00022191,4]
[365355275,1749617441130,-460.0,0.00022191,4]
[365355277,1749617441140,-460.0,0.00022191,4]
[365355280,1749617441150,-460.0,0.00022191,4]
[365355282,1749617441159,-460.0,0.00022191,4]
[365355283,1749617441168,-460.0,0.00022191,4]
[365355285,1749617441178,-400.0,0.00022191,4]
[365355287,1749617441187,-460.0,0.00022191,4]
[365355289,1749617441196,-1455.28,0.00022191,4]
[365355291,1749617441205,-460.0,0.00022191,4]
[365355293,1749617441215,-460.0,0.00022191,4]
[365355295,1749617441224,-380.0,0.00022191,4]
[365355297,1749617441233,-460.0,0.00022191,4]
[365355299,1749617441242,-305.98323056,0.00022191,4]
[365355301,1749617441252,-400.0,0.00022191,4]
[365355303,1749617441261,-1030.92,0.00022191,4]
[365355305,1749617441271,-460.0,0.00022191,4]
[365355307,1749617441280,-460.0,0.00022191,4]
[365355309,1749617441289,-460.0,0.00022191,4]
[365355312,1749617441299,-460.0,0.00022191,4]
[365355314,1749617441309,-460.0,0.00022191,4]
[365355316,1749617441318,-2660.51,0.00022191,4]
[365355318,1749617441327,-460.0,0.00022191,4]
[365355320,1749617441337,-460.0,0.00022191,4]
[365355322,1749617441347,-460.0,0.00022191,4]
[365355324,1749617441356,-500.0,0.00022191,4]
[365355334,1749617441493,-1134.51,0.00022191,4]
[365355335,1749617441505,-460.0,0.00022191,4]
[365355336,1749617441515,-460.0,0.00022191,4]
[365355337,1749617441525,-460.0,0.00022191,4]
[365355338,1749617441535,-460.0,0.00022191,4]
[365355339,1749617441544,-460.0,0.00022191,4]
[365355340,1749617441554,-460.0,0.00022191,4]
[365355341,1749617441564,-460.0,0.00022191,4]
[365355342,1749617441574,-460.0,0.00022191,4]
[365355343,1749617441583,-460.0,0.00022191,4]
[365355344,1749617441593,-2425.91,0.00022191,4]
[365355345,1749617441602,-710.76,0.00022191,4]
[365355346,1749617441612,-460.0,0.00022191,4]
[365355347,1749617441621,-460.0,0.00022191,4]
[365355348,1749617441631,-420.0,0.00022191,4]
[365355350,1749617441641,-635.72,0.00022191,4]
[365355352,1749617441650,-460.0,0.00022191,4]
[365355353,1749617441660,-2347.76,0.00022191,4]
[365355354,1749617441669,-1154.84,0.00022191,4]
[365355355,1749617441679,-460.38291285,0.00022191,4]
[365355356,1749617441688,-2492.72,0.00022191,4]
[365355357,1749617441698,-460.0,0.00022191,4]
[365355358,1749617441707,-961.63,0.00022191,4]
[365355359,1749617441716,-460.0,0.00022191,2]
[365355360,1749617441726,-753.47,0.00022191,4]
[365355361,1749617441735,-1601.67,0.00022191,4]
[365355362,1749617441745,-460.0,0.00022191,4]
[365355363,1749617441754,-460.0,0.00022191,4]
[365355364,1749617441764,-460.0,0.00022191,4]
[365355365,1749617441774,-460.0,0.00022191,4]
[365355366,1749617441785,-543.93,0.00022191,4]
[365355367,1749617441794,-341.96362287,0.00022191,4]
[365355369,1749617441805,-460.0,0.00022191,4]
[365355371,1749617441817,-1190.92,0.00022191,4]
[365355373,1749617441826,-1099.92,0.00022191,4]
[365355375,1749617441836,-235.86137314,0.00022191,4]
[365355377,1749617441846,-173.61221487,0.000222,69]
[365355379,1749617441857,-1148.84305948,0.00022228,2]
[365355381,1749617441866,-844.64040732,0.00022234,2]
[365355383,1749617441875,-213.16534259,0.00022234,2]
[365355385,1749617441886,-160.0,0.00022234,2]
[365355387,1749617441895,-229.71724145,0.00022234,2]
[365355389,1749617441905,-160.0,0.00022234,2]
[365355391,1749617441914,-835.03886221,0.00022234,2]
[365355393,1749617441923,-424.19973472,0.00022234,2]
[365355395,1749617441932,-160.0,0.00022234,2]
[365355397,1749617441942,-160.0,0.00022236,2]
[365355399,1749617441952,-160.0,0.00022241,2]
[365355401,1749617441961,-2817.65454649,0.00022279,6]
[365355403,1749617441970,-173.61221487,0.00022293,69]
[365355405,1749617441980,-1420.05,0.000223,7]
[365355407,1749617441989,-151.0,0.000223,10]
[365355409,1749617441999,-2817.65454649,0.00022417,7]
[365355411,1749617442008,-432.7,0.00022455,3]
[365355413,1749617442017,-500.0,0.00022464,2]
[365355415,1749617442027,-500.0,0.00022464,2]
[365355417,1749617442036,-500.0,0.00022464,2]
[365355419,1749617442045,-500.0,0.00022464,2]
[365355421,1749617442054,-500.0,0.00022464,2]
[365355423,1749617442064,-500.0,0.00022464,2]
[365355426,1749617442074,-572.20991847,0.00022464,2]
[365355428,1749617442082,-500.0,0.00022464,2]
[365355430,1749617442091,-639.937,0.00022464,2]
[365355432,1749617442100,-500.0,0.00022464,2]
[365355433,1749617442108,-500.0,0.00022464,2]
[365355435,1749617442117,-500.0,0.00022464,2]
[365355437,1749617442126,-500.0,0.00022464,2]
[365355439,1749617442135,-500.0,0.00022464,2]
[365355442,1749617442145,-500.0,0.00022464,2]
[365355443,1749617442154,-500.0,0.00022464,2]
[365355445,1749617442163,-500.0,0.00022464,2]
[365355447,1749617442173,-500.0,0.00022464,2]
[365355449,1749617442183,-500.0,0.00022464,2]
[365355451,1749617442192,-500.0,0.00022464,2]
[365355454,1749617442202,-500.0,0.00022464,2]
[365355455,1749617442211,-500.0,0.00022464,2]
[365355457,1749617442220,-620.88557322,0.00022464,2]
[365355459,1749617442230,-500.0,0.00022464,2]
[365355461,1749617442238,-500.0,0.00022464,2]
[365355463,1749617442247,-500.0,0.00022464,2]
[365355465,1749617442257,-500.0,0.00022464,2]
[365355467,1749617442266,-500.0,0.00022464,2]
[365355470,1749617442276,-500.0,0.00022464,2]
[365355472,1749617442285,-500.0,0.00022464,2]
[365355473,1749617442294,-500.0,0.00022464,2]
[365355475,1749617442303,-500.0,0.00022464,2]
[365355477,1749617442313,-500.0,0.00022464,2]
[365355479,1749617442322,-500.0,0.00022464,2]
[365355481,1749617442331,-500.0,0.00022464,2]
[365355483,1749617442340,-500.0,0.00022464,2]
[365355485,1749617442349,-300.0,0.00022464,2]
[365355487,1749617442358,-500.0,0.00022464,2]
[365355489,1749617442368,-500.0,0.00022464,2]
[365355491,1749617442377,-500.0,0.00022464,2]
[365355494,1749617442387,-500.0,0.00022464,2]
[365355496,1749617442396,-500.0,0.00022464,2]
[365355497,1749617442406,-500.0,0.00022464,2]
[365355499,1749617442416,-309.853,0.00022464,2]
[365355501,1749617442425,-500.0,0.00022464,2]
[365355504,1749617442438,-500.0,0.00022464,2]
[365355506,1749617442447,-460.0,0.00022465,4]
[365355508,1749617442457,-420.0,0.00022465,4]
[365355510,1749617442466,-460.0,0.00022465,4]
[365355512,1749617442475,-343.60493372,0.00022465,4]
[365355514,1749617442485,-377.41269637,0.00022465,4]
[365355516,1749617442494,-440.0,0.00022465,4]
[365355518,1749617442503,-460.0,0.00022465,4]
[365355520,1749617442514,-460.0,0.00022465,4]
[365355522,1749617442523,-380.14910191,0.00022465,4]
[365355524,1749617442532,-420.0,0.00022465,4]
[365355526,1749617442541,-460.0,0.00022465,4]
[365355528,1749617442551,-2810.08,0.00022465,4]
[365355530,1749617442560,-829.06,0.00022465,4]
[365355532,1749617442569,-460.0,0.00022465,4]
[365355534,1749617442579,-348.29167125,0.00022465,4]
[365355536,1749617442589,-460.0,0.00022465,4]
[365355539,1749617442599,-460.0,0.00022465,4]
[365355542,1749617442609,-460.0,0.00022465,4]
[365355544,1749617442618,-460.0,0.00022465,4]
[365355546,1749617442628,-1455.28,0.00022465,4]
[365355548,1749617442637,-460.0,0.00022465,4]
[365355550,1749617442646,-460.0,0.00022465,4]
[365355552,1749617442655,-244.43935566,0.00022465,4]
[365355554,1749617442664,-1030.92,0.00022465,4]
[365355556,1749617442673,-460.0,0.00022465,4]
[365355558,1749617442682,-460.0,0.00022465,4]
[365355561,1749617442691,-460.0,0.00022465,4]
[365355563,1749617442701,-460.0,0.00022465,4]
[365355565,1749617442710,-460.0,0.00022465,4]
[365355567,1749617442719,-2660.51,0.00022465,4]
[365355569,1749617442728,-460.0,0.00022465,4]
[365355571,1749617442737,-460.0,0.00022465,4]
[365355573,1749617442746,-460.0,0.00022465,4]
[365355575,1749617442755,-504.312287,0.00022465,4]
[365355577,1749617442765,-1134.51,0.00022465,4]
[365355579,1749617442775,-370.0,0.00022465,4]
[365355581,1749617442784,-460.0,0.00022465,4]
[365355583,1749617442793,-267.14944358,0.00022465,4]
[365355585,1749617442803,-460.0,0.00022465,4]
[365355587,1749617442816,-460.0,0.00022465,4]
[365355589,1749617442825,-460.0,0.00022465,4]
[365355591,1749617442834,-548.19750712,0.00022465,4]
[365355593,1749617442843,-460.0,0.00022465,4]
[365355595,1749617442853,-460.0,0.00022465,4]
[365355597,1749617442862,-2425.91,0.00022465,4]
[365355599,1749617442871,-710.76,0.00022465,4]
[365355601,1749617442881,-460.0,0.00022465,4]
[365355603,1749617442890,-460.0,0.00022465,4]
[365355605,1749617442899,-635.72,0.00022465,4]
[365355607,1749617442908,-460.0,0.00022465,4]
[365355609,1749617442919,-2347.76,0.00022465,4]
[365355612,1749617442928,-1154.84,0.00022465,4]
[365355615,1749617442937,-2492.72,0.00022465,4]
[365355618,1749617442946,-460.0,0.00022465,4]
[365355620,1749617442956,-961.63,0.00022465,4]
[365355623,1749617442965,-441.60666462,0.00022465,2]
[365355625,1749617442975,-753.47,0.00022465,4]
[365355627,1749617442984,-1601.67,0.00022465,4]
[365355629,1749617442993,-460.0,0.00022465,4]
[365355631,1749617443003,-460.0,0.00022465,4]
[365355633,1749617443012,-460.0,0.00022465,4]
[365355635,1749617443021,-460.0,0.00022465,4]
[365355637,1749617443030,-543.93,0.00022465,4]
[365355639,1749617443040,-460.0,0.00022465,4]
[365355640,1749617443049,-1190.92,0.00022465,4]
[365355643,1749617443059,-1099.92,0.00022465,4]
[365355645,1749617443068,-274.01344458,0.00022529,2]
[365355646,1749617443077,-2817.65454649,0.00022555,7]
[365355649,1749617443087,-491.78487938,0.00022558,2]
[365355650,1749617443096,-151.0,0.000226,8]
[365355653,1749617443106,-600.0,0.00022656,2]
[365355654,1749617443115,-547.46557668,0.00022656,2]
[365355657,1749617443124,-446.79065373,0.00022676,2]
[365355658,1749617443133,-2817.65454649,0.00022693,7]
[365355660,1749617443142,-160.0,0.00022715,3]
[365355662,1749617443151,-372.87303034,0.00022739,4]
[365355664,1749617443161,-433.89,0.00022739,4]
[365355666,1749617443170,-460.0,0.00022739,4]
[365355669,1749617443179,-330.0,0.00022739,4]
[365355671,1749617443189,-259.9073917,0.00022739,4]
[365355673,1749617443199,-2810.08,0.00022739,4]
[365355674,1749617443208,-829.06,0.00022739,4]
[365355676,1749617443217,-460.0,0.00022739,4]
[365355679,1749617443226,-460.0,0.00022739,4]
[365355681,1749617443236,-340.0,0.00022739,4]
[365355682,1749617443246,-460.0,0.00022739,4]
[365355684,1749617443255,-460.0,0.00022739,4]
[365355686,1749617443264,-1455.28,0.00022739,4]
[365355689,1749617443273,-460.0,0.00022739,4]
[365355691,1749617443283,-460.0,0.00022739,4]
[365355693,1749617443292,-1030.92,0.00022739,4]
[365355695,1749617443301,-460.0,0.00022739,4]
[365355706,1749617443311,-256.33,0.00022739,4]
[365355709,1749617443417,-340.0,0.00022739,4]
[365355711,1749617443427,-460.0,0.00022739,4]
[365355713,1749617443441,-460.0,0.00022739,4]
[365355715,1749617443450,-2660.51,0.00022739,4]
[365355717,1749617443459,-460.0,0.00022739,4]
[365355719,1749617443468,-460.0,0.00022739,4]
[365355721,1749617443478,-460.0,0.00022739,4]
[365355723,1749617443487,-1134.51,0.00022739,4]
[365355725,1749617443497,-280.0,0.00022739,4]
[365355727,1749617443506,-460.0,0.00022739,4]
[365355729,1749617443516,-208.88069575,0.00022739,4]
[365355731,1749617443526,-460.0,0.00022739,4]
[365355733,1749617443535,-460.0,0.00022739,4]
[365355735,1749617443545,-157.1189379,0.00022739,4]
[365355737,1749617443558,-2425.91,0.00022739,4]
[365355740,1749617443567,-710.76,0.00022739,4]
[365355742,1749617443577,-460.0,0.00022739,4]
[365355743,1749617443586,-460.0,0.00022739,4]
[365355745,1749617443596,-635.72,0.00022739,4]
[365355747,1749617443605,-420.43,0.00022739,4]
[365355749,1749617443615,-2347.76,0.00022739,4]
[365355751,1749617443624,-1154.84,0.00022739,4]
[365355754,1749617443634,-2492.72,0.00022739,4]
[365355755,1749617443643,-421.25,0.00022739,4]
[365355757,1749617443653,-961.63,0.00022739,4]
[365355760,1749617443663,-753.47,0.00022739,4]
[365355761,1749617443672,-1601.67,0.00022739,4]
[365355763,1749617443682,-420.0,0.00022739,4]
[365355766,1749617443691,-460.0,0.00022739,4]
[365355768,1749617443701,-460.0,0.00022739,4]
[365355770,1749617443710,-280.0,0.00022739,4]
[365355772,1749617443720,-543.93,0.00022739,4]
[365355773,1749617443729,-460.0,0.00022739,4]
[365355775,1749617443739,-1190.92,0.00022739,4]
[365355777,1749617443748,-1099.92,0.00022739,4]
[365355779,1749617443757,-165.86622271,0.00022783,2]
[365355781,1749617443767,-465.58,0.000228,7]
[365355783,1749617443776,-151.0,0.000228,10]
[365355785,1749617443786,-5000.0,0.00022803,2]
[365355787,1749617443795,-207.4,0.00022803,2]
[365355789,1749617443804,-2817.65454649,0.00022831,8]
[365355791,1749617443817,-1148.84305948,0.00022845,2]
[365355793,1749617443826,-2817.65454649,0.00022969,8]
[365355795,1749617443836,-474.92905902,0.00022987,2]
[365355797,1749617443845,-19000.0,0.00023,3]
[365355799,1749617443855,-160.0,0.00023,3]
[365355801,1749617443863,-160.0,0.00023,3]
[365355803,1749617443872,-160.0,0.00023,3]
[365355804,1749617443881,-835.03886221,0.00023,3]
[365355805,1749617443891,-424.19973472,0.00023,3]
[365355806,1749617443901,-160.0,0.00023,3]
[365355807,1749617443912,-160.0,0.00023,3]
[365355808,1749617443922,-27126.115,0.00023,2]
[365355810,1749617443931,-216.75755056,0.00023,3]
[365355812,1749617443940,-213.16534259,0.00023,3]
[365355814,1749617443950,-446.79065373,0.00023012,2]
[365355817,1749617443959,-460.0,0.00023013,4]
[365355819,1749617443970,-2810.08,0.00023013,4]
[365355821,1749617443980,-829.06,0.00023013,4]
[365355823,1749617443990,-460.0,0.00023013,4]
[365355825,1749617443999,-360.0,0.00023013,4]
[365355827,1749617444008,-460.0,0.00023013,4]
[365355829,1749617444017,-460.0,0.00023013,4]
[365355831,1749617444027,-1455.28,0.00023013,4]
[365355833,1749617444036,-460.0,0.00023013,4]
[365355835,1749617444045,-460.0,0.00023013,4]
[365355837,1749617444054,-1030.92,0.00023013,4]
[365355839,1749617444063,-460.0,0.00023013,4]
[365355841,1749617444072,-460.0,0.00023013,4]
[365355843,1749617444082,-460.0,0.00023013,4]
[365355845,1749617444091,-2660.51,0.00023013,4]
[365355847,1749617444100,-460.0,0.00023013,4]
[365355849,1749617444109,-460.0,0.00023013,4]
[365355851,1749617444118,-460.0,0.00023013,4]
[365355853,1749617444127,-1134.51,0.00023013,4]
[365355855,1749617444137,-300.0,0.00023013,4]
[365355857,1749617444146,-340.0,0.00023013,4]
[365355859,1749617444156,-460.0,0.00023013,4]
[365355861,1749617444165,-2425.91,0.00023013,4]
[365355863,1749617444174,-710.76,0.00023013,4]
[365355865,1749617444184,-460.0,0.00023013,4]
[365355867,1749617444193,-460.0,0.00023013,4]
[365355869,1749617444202,-635.72,0.00023013,4]
[365355871,1749617444212,-2347.76,0.00023013,4]
[365355873,1749617444221,-1154.84,0.00023013,4]
[365355875,1749617444231,-2492.72,0.00023013,4]
[365355877,1749617444241,-961.63,0.00023013,4]
[365355880,1749617444251,-753.47,0.00023013,4]
[365355881,1749617444260,-1601.67,0.00023013,4]
[365355883,1749617444269,-460.0,0.00023013,4]
[365355885,1749617444279,-460.0,0.00023013,4]
[365355888,1749617444288,-543.93,0.00023013,4]
[365355890,1749617444297,-460.0,0.00023013,4]
[365355891,1749617444306,-1190.92,0.00023013,4]
[365355893,1749617444316,-1099.92,0.00023013,4]
[365355896,1749617444325,-729.1349517,0.00023041,2]
[365355898,1749617444335,-365.0707398,0.00023041,2]
[365355900,1749617444344,-365.0707398,0.00023041,2]
[365355902,1749617444353,-729.9976899,0.00023041,2]
[365355904,1749617444362,-365.0707398,0.00023041,2]
[365355906,1749617444371,-33727.15,0.000231,2]
[365355908,1749617444380,-151.0,0.000231,8]
[365355910,1749617444390,-2817.65454649,0.00023107,8]
[365355912,1749617444399,-1200.0,0.00023204,2]
[365355914,1749617444408,-446.79065373,0.00023208,2]
[365355916,1749617444418,-2817.65454649,0.00023245,8]
[365355918,1749617444427,-500.0,0.00023256,2]
[365355920,1749617444437,-236.86,0.00023278,2]
[365355922,1749617444447,-460.0,0.00023287,4]
[365355924,1749617444456,-2810.08,0.00023287,4]
[365355926,1749617444465,-829.06,0.00023287,4]
[365355928,1749617444475,-460.0,0.00023287,4]
[365355930,1749617444484,-460.0,0.00023287,4]
[365355932,1749617444494,-460.0,0.00023287,4]
[365355934,1749617444503,-1455.28,0.00023287,4]
[365355936,1749617444512,-460.0,0.00023287,4]
[365355938,1749617444523,-460.0,0.00023287,4]
[365355940,1749617444532,-1030.92,0.00023287,4]
[365355942,1749617444542,-460.0,0.00023287,4]
[365355944,1749617444551,-460.0,0.00023287,4]
[365355946,1749617444561,-174.86,0.00023287,4]
[365355948,1749617444570,-2660.51,0.00023287,4]
[365355950,1749617444579,-460.0,0.00023287,4]
[365355952,1749617444588,-460.0,0.00023287,4]
[365355954,1749617444598,-460.0,0.00023287,4]
[365355956,1749617444608,-1134.51,0.00023287,4]
[365355958,1749617444618,-334.81,0.00023287,4]
[365355960,1749617444627,-2425.91,0.00023287,4]
[365355962,1749617444636,-710.76,0.00023287,4]
[365355964,1749617444646,-460.0,0.00023287,4]
[365355966,1749617444656,-460.0,0.00023287,4]
[365355968,1749617444665,-635.72,0.00023287,4]
[365355970,1749617444675,-2347.76,0.00023287,4]
[365355972,1749617444684,-1154.84,0.00023287,4]
[365355974,1749617444693,-2492.72,0.00023287,4]
[365355976,1749617444702,-961.63,0.00023287,4]
[365355978,1749617444711,-753.47,0.00023287,4]
[365355980,1749617444720,-1601.67,0.00023287,4]
[365355982,1749617444729,-288.52895439,0.00023287,4]
[365355984,1749617444738,-460.0,0.00023287,4]
[365355986,1749617444747,-543.93,0.00023287,4]
[365355989,1749617444756,-460.0,0.00023287,4]
[365355990,1749617444766,-1190.92,0.00023287,4]
[365355992,1749617444776,-1099.92,0.00023287,4]
[365355994,1749617444786,-446.79065374,0.0002329,2]
[365355996,1749617444795,-151.0,0.000233,10]
[365355999,1749617444805,-151.0,0.000233,7]
[365356000,1749617444817,-176.8752352,0.00023315,2]
[365356002,1749617444826,-306.0,0.00023315,2]
[365356005,1749617444836,-573.4653004,0.00023315,2]
[365356007,1749617444846,-160.8559955,0.00023315,2]
[365356009,1749617444856,-237.9898302,0.00023315,2]
[365356011,1749617444865,-153.0,0.00023315,2]
[365356013,1749617444875,-176.8752352,0.00023315,2]
[365356015,1749617444884,-158.7816813,0.00023315,2]
[365356017,1749617444893,-573.4653004,0.00023315,2]
[365356019,1749617444903,-158.7816813,0.00023315,2]
[365356021,1749617444912,-176.8752352,0.00023315,2]
[365356023,1749617444921,-573.4653004,0.00023315,2]
[365356025,1749617444931,-176.8752352,0.00023315,2]
[365356027,1749617444941,-158.7816813,0.00023315,2]
[365356029,1749617444950,-573.4653004,0.00023315,2]
[365356031,1749617444960,-153.0,0.00023315,2]
[365356033,1749617444969,-176.8752352,0.00023315,2]
[365356035,1749617444979,-158.7816813,0.00023315,2]
[365356037,1749617444988,-573.4653004,0.00023315,2]
[365356039,1749617444998,-307.9447424,0.00023315,2]
[365356041,1749617445007,-158.7201836,0.00023315,2]
[365356043,1749617445016,-176.81809,0.00023315,2]
[365356045,1749617445025,-573.4653004,0.00023315,2]
[365356047,1749617445035,-573.4653004,0.00023315,2]
[365356049,1749617445044,-5000.0,0.00023351,2]
[365356052,1749617445054,-2817.65454649,0.00023383,9]
[365356053,1749617445063,-1110.910619,0.000234,2]
[365356056,1749617445072,-152.070046,0.000234,7]
[365356066,1749617445157,-1148.84305948,0.00023461,2]
[365356068,1749617445167,-167.91038412,0.00023473,2]
[365356070,1749617445176,-165.86622271,0.00023479,2]
[365356072,1749617445185,-292.74318718,0.00023495,2]
[365356074,1749617445195,-151.0,0.000235,8]
[365356076,1749617445204,-1420.05,0.000235,7]
[365356078,1749617445213,-160.0,0.000235,7]
[365356080,1749617445222,-2817.65454649,0.00023521,9]
[365356082,1749617445231,-115748.16380076,0.00023558,2]
[365356094,1749617445336,-72507.7226701,0.00023558,2]
[365356096,1749617445345,-151.0,0.00023558,7]
[365356098,1749617445354,-151.0,0.00023558,7]
[365356100,1749617445364,-154.971557,0.00023558,7]
[365356102,1749617445374,-151.0,0.00023558,7]
[365356104,1749617445383,-151.0,0.00023558,7]
[365356106,1749617445392,-342.082708,0.00023558,7]
[365356108,1749617445401,-342.082708,0.00023558,7]
[365356110,1749617445411,-151.0,0.00023558,7]
[365356112,1749617445421,-151.0,0.00023558,7]
[365356114,1749617445431,-151.0,0.00023558,7]
[365356116,1749617445440,-151.0,0.00023558,7]
[365356118,1749617445450,-151.0,0.00023558,7]
[365356120,1749617445460,-151.0,0.00023558,7]
[365356122,1749617445469,-258.242665,0.00023558,7]
[365356124,1749617445479,-258.242665,0.00023558,7]
[365356126,1749617445488,-151.0,0.00023558,7]
[365356129,1749617445498,-151.0,0.00023558,7]
[365356131,1749617445508,-151.0,0.00023558,7]
[365356133,1749617445518,-151.0,0.00023558,7]
[365356135,1749617445527,-200.0,0.00023561,4]
[365356137,1749617445537,-200.0,0.00023561,4]
[365356139,1749617445547,-200.0,0.00023561,4]
[365356140,1749617445556,-200.0,0.00023561,4]
[365356142,1749617445566,-200.0,0.00023561,4]
[365356144,1749617445575,-200.0,0.00023561,4]
[365356146,1749617445585,-200.0,0.00023561,4]
[365356148,1749617445594,-200.0,0.00023561,4]
[365356150,1749617445604,-200.0,0.00023561,4]
[365356152,1749617445613,-200.0,0.00023561,4]
[365356154,1749617445622,-151.0,0.00023561,7]
[365356156,1749617445632,-575.33152296,0.00023561,4]
[365356158,1749617445641,-2810.08,0.00023561,4]
[365356160,1749617445650,-829.06,0.00023561,4]
[365356162,1749617445662,-196.90652436,0.00023561,4]
[365356164,1749617445672,-460.0,0.00023561,4]
[365356166,1749617445682,-460.0,0.00023561,4]
[365356168,1749617445691,-1455.28,0.00023561,4]
[365356170,1749617445700,-460.0,0.00023561,4]
[365356172,1749617445709,-460.0,0.00023561,4]
[365356174,1749617445719,-1030.92,0.00023561,4]